[Event "*** Titled Tuesday 3|2 Blitz"]
[Site "Chess.com"]
[Date "2017.03.07"]
[Round "8"]
[White "Makalexa"]
[Black "AllStarShark"]
[Result "1-0"]
[WhiteElo "2133"]
[BlackElo "2265"]
[TimeControl "180+2"]
[EndTime "14:53:22 PST"]
[Termination "Makalexa won by checkmate"]

1. e4 {[%clk 0:03:02]} 1... c6 {[%clk 0:02:57.6]} 2. d4 {[%clk 0:03:01.9]} 2...
d5 {[%clk 0:02:58.5]} 3. exd5 {[%clk 0:03:02.3]} 3... cxd5 {[%clk 0:02:59.5]} 4.
c4 {[%clk 0:03:03.8]} 4... Nf6 {[%clk 0:02:59.7]} 5. Nc3 {[%clk 0:03:03.5]} 5...
Nc6 {[%clk 0:02:59.5]} 6. Nf3 {[%clk 0:02:58.3]} 6... Bg4 {[%clk 0:02:59.2]} 7.
cxd5 {[%clk 0:02:55.6]} 7... Nxd5 {[%clk 0:02:55.1]} 8. Qb3 {[%clk 0:02:56.1]}
8... Bxf3 {[%clk 0:02:53]} 9. Qxb7 {[%clk 0:02:53.2]} 9... Nxc3 {[%clk 0:02:46]}
10. gxf3 {[%clk 0:02:13.6]} 10... Nxd4 {[%clk 0:02:31.4]} 11. bxc3 {[%clk
0:02:13]} 11... Nc2+ {[%clk 0:02:25.3]} 12. Ke2 {[%clk 0:02:13.3]} 12... Rb8
{[%clk 0:02:16.9]} 13. Qc6+ {[%clk 0:01:58.5]} 13... Qd7 {[%clk 0:02:17.7]} 14.
Qxd7+ {[%clk 0:01:48.8]} 14... Kxd7 {[%clk 0:02:19.6]} 15. Bh3+ {[%clk
0:01:49.3]} 15... e6 {[%clk 0:02:17.3]} 16. Bf4 {[%clk 0:01:49.7]} 16... Rb2
{[%clk 0:02:07.2]} 17. Rhb1 {[%clk 0:01:32.1]} 17... Ba3 {[%clk 0:01:48.9]} 18.
Rxb2 {[%clk 0:01:30.6]} 18... Bxb2 {[%clk 0:01:50.8]} 19. Rb1 {[%clk 0:01:31.2]}
19... Bxc3 {[%clk 0:01:28.4]} 20. Rb7+ {[%clk 0:01:27.7]} 20... Kc6 {[%clk
0:01:24.6]} 21. Rc7+ {[%clk 0:01:27.4]} 21... Kd5 {[%clk 0:01:24.3]} 22. Rxc3
{[%clk 0:01:27.3]} 22... Nd4+ {[%clk 0:01:23.1]} 23. Kd3 {[%clk 0:01:24.2]}
23... Rd8 {[%clk 0:01:18.8]} 24. Be3 {[%clk 0:01:13]} 24... Nxf3 {[%clk
0:01:03.2]} 25. Bg2 {[%clk 0:01:08.9]} 25... Ke5+ {[%clk 0:01:01]} 26. Ke2
{[%clk 0:00:53.8]} 26... Nd4+ {[%clk 0:00:53.3]} 27. Bxd4+ {[%clk 0:00:54.6]}
27... Rxd4 {[%clk 0:00:51.9]} 28. Rc5+ {[%clk 0:00:48.9]} 28... Kf6 {[%clk
0:00:50.3]} 29. Ra5 {[%clk 0:00:49.6]} 29... Rd7 {[%clk 0:00:50.8]} 30. Ke3
{[%clk 0:00:50.3]} 30... g5 {[%clk 0:00:48.7]} 31. a4 {[%clk 0:00:50.1]} 31...
h5 {[%clk 0:00:49.3]} 32. Rb5 {[%clk 0:00:50.6]} 32... Kg6 {[%clk 0:00:38.1]}
33. a5 {[%clk 0:00:48.5]} 33... f5 {[%clk 0:00:39]} 34. Rb7 {[%clk 0:00:47.8]}
34... f4+ {[%clk 0:00:36.6]} 35. Ke2 {[%clk 0:00:48.1]} 35... Rd4 {[%clk
0:00:34.6]} 36. Rxa7 {[%clk 0:00:45.6]} 36... g4 {[%clk 0:00:35.8]} 37. Bc6
{[%clk 0:00:41.4]} 37... f3+ {[%clk 0:00:33.2]} 38. Ke3 {[%clk 0:00:41.1]} 38...
Rb4 {[%clk 0:00:33.1]} 39. a6 {[%clk 0:00:41.3]} 39... Rb3+ {[%clk 0:00:32.8]}
40. Kd4 {[%clk 0:00:41.8]} 40... Rb2 {[%clk 0:00:33.2]} 41. Ra8 {[%clk
0:00:38.7]} 41... Rxf2 {[%clk 0:00:33.9]} 42. Rg8+ {[%clk 0:00:39]} 42... Kf5
{[%clk 0:00:32.6]} 43. a7 {[%clk 0:00:38.7]} 43... e5+ {[%clk 0:00:27.1]} 44.
Kd3 {[%clk 0:00:36.8]} 44... Ra2 {[%clk 0:00:25.9]} 45. Rf8+ {[%clk 0:00:35.9]}
45... Kg5 {[%clk 0:00:25.6]} 46. a8=Q {[%clk 0:00:34.3]} 46... Rxa8 {[%clk
0:00:25.7]} 47. Bxa8 {[%clk 0:00:33.6]} 47... Kh4 {[%clk 0:00:26.1]} 48. Ke3
{[%clk 0:00:33.3]} 48... Kh3 {[%clk 0:00:26.7]} 49. Bxf3 {[%clk 0:00:27]} 49...
gxf3 {[%clk 0:00:18.6]} 50. Kxf3 {[%clk 0:00:27.6]} 50... Kxh2 {[%clk
0:00:19.8]} 51. Rh8 {[%clk 0:00:27.2]} 51... h4 {[%clk 0:00:17.1]} 52. Rxh4+
{[%clk 0:00:25.7]} 52... Kg1 {[%clk 0:00:19]} 53. Re4 {[%clk 0:00:21.1]} 53...
Kh2 {[%clk 0:00:10.8]} 54. Rxe5 {[%clk 0:00:18.9]} 54... Kg1 {[%clk 0:00:11.8]}
55. Re2 {[%clk 0:00:16.2]} 55... Kf1 {[%clk 0:00:12.4]} 56. Re8 {[%clk
0:00:15.7]} 56... Kg1 {[%clk 0:00:13.2]} 57. Kg3 {[%clk 0:00:16.6]} 57... Kf1
{[%clk 0:00:14.1]} 58. Re7 {[%clk 0:00:17.5]} 58... Kg1 {[%clk 0:00:14.8]} 59.
Re1# {[%clk 0:00:17.9]} 1-0

[Event "*** Titled Tuesday 3|2 Blitz"]
[Site "Chess.com"]
[Date "2017.03.07"]
[Round "8"]
[White "GM_Splinter"]
[Black "PelinGorki"]
[Result "1/2-1/2"]
[WhiteElo "2274"]
[BlackElo "2427"]
[TimeControl "180+2"]
[EndTime "14:54:04 PST"]
[Termination "Game drawn by agreement"]

1. e4 {[%clk 0:03:02]} 1... d6 {[%clk 0:03:00]} 2. d4 {[%clk 0:03:02.2]} 2...
Nf6 {[%clk 0:03:01.5]} 3. Nc3 {[%clk 0:03:03.8]} 3... c6 {[%clk 0:03:03.1]} 4.
f4 {[%clk 0:03:04.1]} 4... Qa5 {[%clk 0:03:03.6]} 5. Bd3 {[%clk 0:02:58.7]} 5...
e5 {[%clk 0:03:04.3]} 6. Nf3 {[%clk 0:02:53.2]} 6... exd4 {[%clk 0:03:05]} 7.
Nxd4 {[%clk 0:02:51.4]} 7... Qb6 {[%clk 0:03:06.6]} 8. Nf3 {[%clk 0:02:47.7]}
8... d5 {[%clk 0:03:07.6]} 9. e5 {[%clk 0:02:43.4]} 9... Ng4 {[%clk 0:03:06.7]}
10. Qe2 {[%clk 0:02:44.3]} 10... Bc5 {[%clk 0:03:08.2]} 11. Nd1 {[%clk
0:02:13.8]} 11... h5 {[%clk 0:02:57.4]} 12. f5 {[%clk 0:01:59.1]} 12... Qc7
{[%clk 0:01:32.3]} 13. Ne3 {[%clk 0:01:22.4]} 13... Nxe5 {[%clk 0:01:27.1]} 14.
Nxd5 {[%clk 0:01:18.4]} 14... cxd5 {[%clk 0:01:27.9]} 15. Qxe5+ {[%clk
0:01:06.5]} 15... Qxe5+ {[%clk 0:01:28.4]} 16. Nxe5 {[%clk 0:01:08]} 16... Nc6
{[%clk 0:01:30.3]} 17. Nxc6 {[%clk 0:00:49.6]} 17... bxc6 {[%clk 0:01:32.2]} 18.
Bf4 {[%clk 0:00:50.8]} 18... O-O {[%clk 0:01:28.3]} 19. O-O-O {[%clk 0:00:51.7]}
19... Bd7 {[%clk 0:01:26.2]} 20. h3 {[%clk 0:00:45.6]} 20... Rfe8 {[%clk
0:01:27.4]} 21. g4 {[%clk 0:00:46.5]} 21... h4 {[%clk 0:01:24.6]} 22. Rde1
{[%clk 0:00:33]} 22... Bf2 {[%clk 0:01:24.1]} 23. Ref1 {[%clk 0:00:33]} 23...
Be3+ {[%clk 0:01:24.4]} 24. Bxe3 {[%clk 0:00:31.9]} 24... Rxe3 {[%clk
0:01:25.5]} 25. Kd2 {[%clk 0:00:32.7]} 25... Rae8 {[%clk 0:01:25.3]} 26. Rf4
{[%clk 0:00:33.7]} 26... c5 {[%clk 0:01:24.1]} 27. b3 {[%clk 0:00:32.9]} 27...
d4 {[%clk 0:01:24.9]} 28. g5 {[%clk 0:00:23.1]} 28... Bc6 {[%clk 0:01:25.3]} 29.
Rh2 {[%clk 0:00:22.9]} 29... Be4 {[%clk 0:01:13.1]} 30. Rxh4 {[%clk 0:00:18.1]}
30... Bxd3 {[%clk 0:01:12.8]} 31. cxd3 {[%clk 0:00:20]} 31... Rf3 {[%clk
0:01:13.7]} 32. Re2 {[%clk 0:00:15.1]} 32... Rxe2+ {[%clk 0:01:09.2]} 33. Kxe2
{[%clk 0:00:17]} 33... Rxf5 {[%clk 0:01:11.1]} 34. Rg4 {[%clk 0:00:18.3]} 34...
Kf8 {[%clk 0:01:11.4]} 35. h4 {[%clk 0:00:18.9]} 35... Ke7 {[%clk 0:01:12.3]}
36. Re4+ {[%clk 0:00:19.8]} 36... Kd6 {[%clk 0:01:12.7]} 37. Re8 {[%clk
0:00:18.8]} 37... Re5+ {[%clk 0:00:56]} 38. Rxe5 {[%clk 0:00:18.7]} 38... Kxe5
{[%clk 0:00:57.9]} 39. Kf3 {[%clk 0:00:20.6]} 39... Kf5 {[%clk 0:00:59]} 40. Kg3
{[%clk 0:00:21.5]} 40... g6 {[%clk 0:00:59.6]} 41. Kf3 {[%clk 0:00:21.8]} 41...
a5 {[%clk 0:00:57.6]} 42. Kg3 {[%clk 0:00:11.7]} 42... Ke5 {[%clk 0:00:56.8]}
43. Kf3 {[%clk 0:00:12.4]} 43... Kf5 {[%clk 0:00:49.6]} 44. a4 {[%clk
0:00:12.8]} 44... Ke5 {[%clk 0:00:45.4]} 45. Kg4 {[%clk 0:00:13.5]} 45... f5+
{[%clk 0:00:42.5]} 46. gxf6 {[%clk 0:00:14]} 46... Kxf6 {[%clk 0:00:43.6]} 47.
Kf4 {[%clk 0:00:15.6]} 47... Ke6 {[%clk 0:00:44.9]} 48. Kg5 {[%clk 0:00:16.6]}
48... Kf7 {[%clk 0:00:46.3]} 49. h5 {[%clk 0:00:12.1]} 49... gxh5 {[%clk
0:00:44.6]} 50. Kxh5 {[%clk 0:00:14]} 50... Kf6 {[%clk 0:00:32.6]} 51. Kg4
{[%clk 0:00:15]} 51... Ke6 {[%clk 0:00:33.4]} 52. Kf4 {[%clk 0:00:15.6]} 52...
Kd6 {[%clk 0:00:33.4]} 53. Kf5 {[%clk 0:00:13.7]} 53... Kd5 {[%clk 0:00:32.4]}
54. Kf6 {[%clk 0:00:14.6]} 54... Kd6 {[%clk 0:00:33.7]} 55. Kf5 {[%clk
0:00:15.6]} 55... Kd5 {[%clk 0:00:35.2]} 56. Kf4 {[%clk 0:00:16.3]} 56... Kd6
{[%clk 0:00:35.9]} 57. Kf5 {[%clk 0:00:15.7]} 57... Kd5 {[%clk 0:00:37.3]} 58.
Kf6 {[%clk 0:00:17]} 58... Kd6 {[%clk 0:00:38.7]} 59. Kf7 {[%clk 0:00:16.4]}
59... Ke5 {[%clk 0:00:29.2]} 60. Ke7 {[%clk 0:00:17.4]} 60... Kf4 {[%clk
0:00:30.6]} 61. Kd6 {[%clk 0:00:18.8]} 61... Ke3 {[%clk 0:00:31.9]} 62. Kxc5
{[%clk 0:00:20.3]} 62... Kxd3 {[%clk 0:00:33.1]} 63. b4 {[%clk 0:00:20.9]} 63...
axb4 {[%clk 0:00:21.1]} 64. Kxb4 {[%clk 0:00:22.8]} 64... Ke3 {[%clk 0:00:21.7]}
65. a5 {[%clk 0:00:23.6]} 65... d3 {[%clk 0:00:23.2]} 66. a6 {[%clk 0:00:24.9]}
66... d2 {[%clk 0:00:24.8]} 67. a7 {[%clk 0:00:26.3]} 67... d1=Q {[%clk
0:00:26.1]} 68. a8=Q {[%clk 0:00:27.4]} 68... Qb1+ {[%clk 0:00:27.8]} 69. Kc5
{[%clk 0:00:26.5]} 1/2-1/2

[Event "*** Titled Tuesday 3|2 Blitz"]
[Site "Chess.com"]
[Date "2017.03.07"]
[Round "8"]
[White "jcibarra"]
[Black "LuckyTiger"]
[Result "1-0"]
[WhiteElo "2675"]
[BlackElo "2511"]
[TimeControl "180+2"]
[EndTime "14:54:18 PST"]
[Termination "jcibarra won by resignation"]

1. e4 {[%clk 0:03:02]} 1... e6 {[%clk 0:03:00.3]} 2. d4 {[%clk 0:03:02.5]} 2...
d5 {[%clk 0:03:01.9]} 3. Bd3 {[%clk 0:03:04.1]} 3... dxe4 {[%clk 0:02:41]} 4.
Bxe4 {[%clk 0:03:06]} 4... Nf6 {[%clk 0:02:42.6]} 5. Bf3 {[%clk 0:03:07.2]} 5...
c5 {[%clk 0:02:43.7]} 6. Ne2 {[%clk 0:03:07.6]} 6... Nc6 {[%clk 0:02:44.7]} 7.
Be3 {[%clk 0:03:07.8]} 7... Nd5 {[%clk 0:02:42]} 8. Bxd5 {[%clk 0:03:08]} 8...
Qxd5 {[%clk 0:02:40.6]} 9. Nbc3 {[%clk 0:03:09.6]} 9... Qd7 {[%clk 0:02:06.7]}
10. dxc5 {[%clk 0:02:56.2]} 10... Be7 {[%clk 0:02:06.4]} 11. Qxd7+ {[%clk
0:02:54.8]} 11... Bxd7 {[%clk 0:02:08.3]} 12. O-O-O {[%clk 0:02:55.6]} 12...
O-O-O {[%clk 0:02:04.1]} 13. Nb5 {[%clk 0:02:54.6]} 13... e5 {[%clk 0:02:00.3]}
14. Nec3 {[%clk 0:02:44]} 14... Be6 {[%clk 0:01:48.1]} 15. Ne4 {[%clk 0:02:39]}
15... f5 {[%clk 0:01:48.5]} 16. Nbd6+ {[%clk 0:02:25.5]} 16... Kb8 {[%clk
0:01:41.8]} 17. Ng5 {[%clk 0:02:23.8]} 17... Bxa2 {[%clk 0:01:32.2]} 18. b3
{[%clk 0:02:07.3]} 18... f4 {[%clk 0:01:23.6]} 19. Ngf7 {[%clk 0:02:05.4]} 19...
fxe3 {[%clk 0:01:18.7]} 20. fxe3 {[%clk 0:02:04.6]} 20... Rhf8 {[%clk
0:00:31.5]} 21. Nxd8 {[%clk 0:02:03.8]} 21... Bxd8 {[%clk 0:00:17.3]} 22. Rhf1
{[%clk 0:02:00.2]} 22... Bf6 {[%clk 0:00:17.2]} 23. Ne4 {[%clk 0:01:50.7]} 23...
Kc7 {[%clk 0:00:09.5]} 24. Kb2 {[%clk 0:01:50.1]} 24... Bxb3 {[%clk 0:00:09.9]}
25. cxb3 {[%clk 0:01:48.8]} 25... Nb8 {[%clk 0:00:09.3]} 26. Ng5 {[%clk
0:01:36]} 26... e4+ {[%clk 0:00:05.9]} 27. Ka3 {[%clk 0:01:29.1]} 27... Re8
{[%clk 0:00:06.1]} 28. Nxh7 {[%clk 0:01:21.4]} 28... Be5 {[%clk 0:00:07.2]} 29.
Ng5 {[%clk 0:01:13.7]} 29... Kc6 {[%clk 0:00:08.1]} 30. b4 {[%clk 0:01:13.2]}
30... a5 {[%clk 0:00:08.4]} 31. bxa5 {[%clk 0:00:54.9]} 31... Na6 {[%clk
0:00:09.3]} 32. h3 {[%clk 0:00:41.4]} 32... Nxc5 {[%clk 0:00:08.3]} 33. Rc1
{[%clk 0:00:42]} 33... Kb5 {[%clk 0:00:08.3]} 34. Rf5 {[%clk 0:00:37.4]} 34...
Bd6 {[%clk 0:00:07.9]} 35. Nf7 {[%clk 0:00:31.5]} 35... Bf8 {[%clk 0:00:06.7]}
36. Ka2 {[%clk 0:00:30.8]} 36... Ra8 {[%clk 0:00:06.1]} 37. Rb1+ {[%clk
0:00:23.9]} 37... Kc4 {[%clk 0:00:07]} 38. Rc1+ {[%clk 0:00:24.9]} 38... Kb5
{[%clk 0:00:08.1]} 39. Ng5 {[%clk 0:00:22.8]} 39... Rxa5+ {[%clk 0:00:07.5]} 40.
Kb1 {[%clk 0:00:22.9]} 40... Kb4 {[%clk 0:00:04]} 41. Rxf8 {[%clk 0:00:18.9]}
41... Nb3 {[%clk 0:00:04.5]} 42. Rc7 {[%clk 0:00:18.5]} 42... Rxg5 {[%clk
0:00:04.6]} 43. Rxb7+ {[%clk 0:00:18.4]} 43... Kc4 {[%clk 0:00:06.2]} 44. Rc8+
{[%clk 0:00:19.2]} 44... Nc5 {[%clk 0:00:07.3]} 45. g4 {[%clk 0:00:18.6]} 45...
Kd3 {[%clk 0:00:07.6]} 46. Rbc7 {[%clk 0:00:15.4]} 46... Na4 {[%clk 0:00:06.8]}
47. Ra7 {[%clk 0:00:13.7]} 47... Rb5+ {[%clk 0:00:05.5]} 48. Kc1 {[%clk
0:00:12.6]} 48... Nc5 {[%clk 0:00:05.7]} 49. Ra3+ {[%clk 0:00:12.2]} 49... Ke2
{[%clk 0:00:06.9]} 50. Kc2 {[%clk 0:00:11.6]} 50... Nd3 {[%clk 0:00:07.3]} 51.
Rc4 {[%clk 0:00:11.9]} 51... Kxe3 {[%clk 0:00:06.8]} 52. Rc7 {[%clk 0:00:11.2]}
52... Rb2+ {[%clk 0:00:07.1]} 53. Kc3 {[%clk 0:00:12.2]} 53... Rb1 {[%clk
0:00:08.8]} 54. Rxg7 {[%clk 0:00:13.2]} 54... Rc1+ {[%clk 0:00:09.2]} 55. Kb3
{[%clk 0:00:14.7]} 55... Rb1+ {[%clk 0:00:09.7]} 56. Kc2 {[%clk 0:00:16.2]}
56... Rb2+ {[%clk 0:00:09.8]} 57. Kc3 {[%clk 0:00:17.5]} 57... Rb5 {[%clk
0:00:10.4]} 58. Ra4 {[%clk 0:00:17.6]} 58... Rc5+ {[%clk 0:00:10.3]} 59. Rc4
{[%clk 0:00:18.2]} 59... Ra5 {[%clk 0:00:10.4]} 60. Re7 {[%clk 0:00:18]} 60...
Ra3+ {[%clk 0:00:10.3]} 61. Kc2 {[%clk 0:00:19.3]} 61... Nf2 {[%clk 0:00:10.2]}
62. g5 {[%clk 0:00:19]} 62... Ra2+ {[%clk 0:00:09.9]} 63. Kb3 {[%clk 0:00:19.8]}
63... Ra1 {[%clk 0:00:10.9]} 64. g6 {[%clk 0:00:20.9]} 64... Rg1 {[%clk
0:00:12]} 65. g7 {[%clk 0:00:21.7]} 65... Kd3 {[%clk 0:00:10.7]} 66. Rc8 {[%clk
0:00:20.6]} 66... Nxh3 {[%clk 0:00:05.8]} 67. Rd8+ {[%clk 0:00:19.8]} 67... Ke3
{[%clk 0:00:06.6]} 68. g8=Q {[%clk 0:00:21.3]} 68... Rxg8 {[%clk 0:00:08.5]} 69.
Rxg8 {[%clk 0:00:22.6]} 69... Nf2 {[%clk 0:00:09.8]} 70. Kc4 {[%clk 0:00:23.4]}
1-0

[Event "*** Titled Tuesday 3|2 Blitz"]
[Site "Chess.com"]
[Date "2017.03.07"]
[Round "8"]
[White "Ginger_GM"]
[Black "johnathan113"]
[Result "1/2-1/2"]
[WhiteElo "2496"]
[BlackElo "2389"]
[TimeControl "180+2"]
[EndTime "14:55:22 PST"]
[Termination "Game drawn - insufficient material"]

1. e4 {[%clk 0:03:02]} 1... g6 {[%clk 0:02:59.8]} 2. h4 {[%clk 0:03:02]} 2... h6
{[%clk 0:02:56.2]} 3. Nc3 {[%clk 0:03:01.3]} 3... c5 {[%clk 0:02:56.9]} 4. f4
{[%clk 0:02:57.6]} 4... Nc6 {[%clk 0:02:57]} 5. h5 {[%clk 0:02:57.8]} 5... gxh5
{[%clk 0:02:51.6]} 6. Bc4 {[%clk 0:02:51.9]} 6... e6 {[%clk 0:02:43.3]} 7. Qxh5
{[%clk 0:02:37.1]} 7... Nd4 {[%clk 0:02:43.1]} 8. Kd1 {[%clk 0:02:12.7]} 8...
Nf6 {[%clk 0:02:39.9]} 9. Qh4 {[%clk 0:02:13.4]} 9... Be7 {[%clk 0:02:38.6]} 10.
e5 {[%clk 0:02:07.1]} 10... d5 {[%clk 0:02:16.3]} 11. exd6 {[%clk 0:01:43.7]}
11... Qxd6 {[%clk 0:02:11]} 12. d3 {[%clk 0:01:28.2]} 12... Bd7 {[%clk 0:02:06]}
13. a4 {[%clk 0:01:27.1]} 13... Rg8 {[%clk 0:02:02.7]} 14. Qf2 {[%clk
0:01:23.4]} 14... Ng4 {[%clk 0:02:01.8]} 15. Qe1 {[%clk 0:01:18]} 15... O-O-O
{[%clk 0:01:59.7]} 16. Nf3 {[%clk 0:01:13.4]} 16... f5 {[%clk 0:01:41.6]} 17.
Nb5 {[%clk 0:01:09.3]} 17... Nxb5 {[%clk 0:01:30.7]} 18. axb5 {[%clk 0:01:08.3]}
18... Kb8 {[%clk 0:01:31.7]} 19. Bd2 {[%clk 0:00:37.7]} 19... Bf6 {[%clk
0:01:22.6]} 20. Kc1 {[%clk 0:00:32.7]} 20... Rde8 {[%clk 0:01:19.4]} 21. Bc3
{[%clk 0:00:32]} 21... Qxf4+ {[%clk 0:01:16.8]} 22. Kb1 {[%clk 0:00:32.9]} 22...
Bxc3 {[%clk 0:01:14.9]} 23. Qxc3 {[%clk 0:00:33.4]} 23... b6 {[%clk 0:01:15]}
24. Re1 {[%clk 0:00:21.4]} 24... Bc8 {[%clk 0:01:08.4]} 25. Ka2 {[%clk
0:00:17.4]} 25... Ne3 {[%clk 0:01:03.7]} 26. Ne5 {[%clk 0:00:15.7]} 26... Bb7
{[%clk 0:00:58.7]} 27. Qd2 {[%clk 0:00:14.6]} 27... Nxg2 {[%clk 0:00:52.6]} 28.
Qxf4 {[%clk 0:00:09.4]} 28... Nxf4 {[%clk 0:00:54.5]} 29. Nc6+ {[%clk
0:00:10.5]} 29... Bxc6 {[%clk 0:00:51.3]} 30. bxc6 {[%clk 0:00:12.4]} 30... Rg2
{[%clk 0:00:51.9]} 31. Kb3 {[%clk 0:00:13.8]} 31... e5 {[%clk 0:00:44.3]} 32.
Rh1 {[%clk 0:00:14.1]} 32... h5 {[%clk 0:00:45]} 33. Rhg1 {[%clk 0:00:10.2]}
33... Rg4 {[%clk 0:00:42]} 34. Rge1 {[%clk 0:00:10.2]} 34... h4 {[%clk
0:00:33.4]} 35. Ra6 {[%clk 0:00:10.3]} 35... h3 {[%clk 0:00:31.3]} 36. c7+
{[%clk 0:00:10.7]} 36... Kxc7 {[%clk 0:00:31.5]} 37. Rxa7+ {[%clk 0:00:12]}
37... Kd6 {[%clk 0:00:31.6]} 38. Rh7 {[%clk 0:00:13.6]} 38... Ne6 {[%clk
0:00:22]} 39. c3 {[%clk 0:00:13.9]} 39... Ng5 {[%clk 0:00:21.9]} 40. Rh6+ {[%clk
0:00:14.4]} 40... Kc7 {[%clk 0:00:23.1]} 41. Ra1 {[%clk 0:00:15.5]} 41... Rb8
{[%clk 0:00:18.8]} 42. Bd5 {[%clk 0:00:15.1]} 42... Rb7 {[%clk 0:00:09]} 43.
Bxb7 {[%clk 0:00:15.2]} 43... Kxb7 {[%clk 0:00:10.9]} 44. Rh8 {[%clk 0:00:15.3]}
44... e4 {[%clk 0:00:07.9]} 45. Raa8 {[%clk 0:00:16.7]} 45... exd3 {[%clk
0:00:08.3]} 46. Rab8+ {[%clk 0:00:17.7]} 46... Kc6 {[%clk 0:00:09.8]} 47. c4
{[%clk 0:00:19.1]} 47... Kd6 {[%clk 0:00:06.7]} 48. Rbd8+ {[%clk 0:00:19.3]}
48... Ke5 {[%clk 0:00:07.8]} 49. Rxd3 {[%clk 0:00:20.7]} 49... Ne4 {[%clk
0:00:09.1]} 50. Rhxh3 {[%clk 0:00:20.4]} 50... Rg2 {[%clk 0:00:08.3]} 51. Rd5+
{[%clk 0:00:21.3]} 51... Kf4 {[%clk 0:00:09.4]} 52. Rh4+ {[%clk 0:00:22.7]}
52... Kg5 {[%clk 0:00:06.6]} 53. Rh8 {[%clk 0:00:21.7]} 53... Nf6 {[%clk
0:00:06.5]} 54. Rd6 {[%clk 0:00:21.3]} 54... f4 {[%clk 0:00:05.2]} 55. Rf8
{[%clk 0:00:20.2]} 55... Rg3+ {[%clk 0:00:06.3]} 56. Ka2 {[%clk 0:00:20.8]}
56... Ne4 {[%clk 0:00:07.7]} 57. Rxb6 {[%clk 0:00:21.4]} 57... Kg4 {[%clk
0:00:07.6]} 58. Rg8+ {[%clk 0:00:21.8]} 58... Kf3 {[%clk 0:00:08.8]} 59. Rf8
{[%clk 0:00:23]} 59... Rg2 {[%clk 0:00:06.9]} 60. Re6 {[%clk 0:00:23.4]} 60...
Nc3+ {[%clk 0:00:04.4]} 61. Kb3 {[%clk 0:00:23.9]} 61... Ne2 {[%clk 0:00:06.3]}
62. Ref6 {[%clk 0:00:23.3]} 62... Nd4+ {[%clk 0:00:07.4]} 63. Ka3 {[%clk
0:00:24.4]} 63... Rg4 {[%clk 0:00:08.9]} 64. Ka4 {[%clk 0:00:23.4]} 64... Ke3
{[%clk 0:00:10]} 65. Re8+ {[%clk 0:00:24]} 65... Kd3 {[%clk 0:00:11.5]} 66. b3
{[%clk 0:00:25.2]} 66... Rg1 {[%clk 0:00:11.2]} 67. Ka5 {[%clk 0:00:25.8]} 67...
f3 {[%clk 0:00:11.3]} 68. b4 {[%clk 0:00:25.6]} 68... Ra1+ {[%clk 0:00:11.2]}
69. Kb6 {[%clk 0:00:26.6]} 69... cxb4 {[%clk 0:00:13.1]} 70. Rd8 {[%clk
0:00:27.3]} 70... Kxc4 {[%clk 0:00:10.9]} 71. Rf4 {[%clk 0:00:17.2]} 71... Rd1
{[%clk 0:00:11.4]} 72. Rxf3 {[%clk 0:00:18.5]} 72... Nxf3 {[%clk 0:00:05.8]} 73.
Rxd1 {[%clk 0:00:19]} 73... b3 {[%clk 0:00:07.7]} 74. Ka5 {[%clk 0:00:19.1]}
74... Kc3 {[%clk 0:00:08.1]} 75. Ka4 {[%clk 0:00:19.2]} 75... b2 {[%clk
0:00:06.6]} 76. Ka3 {[%clk 0:00:19.4]} 76... Nd2 {[%clk 0:00:05.3]} 77. Ka2
{[%clk 0:00:17.9]} 77... Kc2 {[%clk 0:00:05.4]} 78. Rxd2+ {[%clk 0:00:16.4]}
78... Kxd2 {[%clk 0:00:07.3]} 79. Kxb2 {[%clk 0:00:15.2]} 1/2-1/2

[Event "*** Titled Tuesday 3|2 Blitz"]
[Site "Chess.com"]
[Date "2017.03.07"]
[Round "9"]
[White "AllStarShark"]
[Black "afgano29"]
[Result "0-1"]
[WhiteElo "2260"]
[BlackElo "2404"]
[TimeControl "180+2"]
[EndTime "15:03:05 PST"]
[Termination "afgano29 won by resignation"]

1. d4 {[%clk 0:03:02]} 1... Nf6 {[%clk 0:02:55.6]} 2. Bg5 {[%clk 0:02:59.7]}
2... e6 {[%clk 0:02:56.1]} 3. e4 {[%clk 0:02:59.8]} 3... h6 {[%clk 0:02:57.6]}
4. Bxf6 {[%clk 0:03:00.7]} 4... Qxf6 {[%clk 0:02:59.5]} 5. c3 {[%clk 0:03:02.1]}
5... d5 {[%clk 0:02:59.7]} 6. e5 {[%clk 0:02:55.6]} 6... Qd8 {[%clk 0:03:00.2]}
7. Nf3 {[%clk 0:02:55.3]} 7... c5 {[%clk 0:03:00.7]} 8. Be2 {[%clk 0:02:55.9]}
8... Nc6 {[%clk 0:03:01.2]} 9. O-O {[%clk 0:02:56.7]} 9... Qb6 {[%clk
0:02:59.6]} 10. Qd2 {[%clk 0:02:53.4]} 10... Be7 {[%clk 0:02:58.2]} 11. a3
{[%clk 0:02:53.8]} 11... a5 {[%clk 0:02:55.5]} 12. a4 {[%clk 0:02:46.4]} 12...
O-O {[%clk 0:02:52.8]} 13. Na3 {[%clk 0:02:47]} 13... cxd4 {[%clk 0:02:51.8]}
14. cxd4 {[%clk 0:02:45.7]} 14... Bd7 {[%clk 0:02:48.8]} 15. Nb5 {[%clk
0:02:45.8]} 15... Rfc8 {[%clk 0:02:48.7]} 16. Rfc1 {[%clk 0:02:45.6]} 16... Nb4
{[%clk 0:02:48.5]} 17. Qe3 {[%clk 0:02:43.2]} 17... Nc2 {[%clk 0:02:46.3]} 18.
Rxc2 {[%clk 0:02:30.8]} 18... Rxc2 {[%clk 0:02:48.2]} 19. Qd3 {[%clk 0:02:26.1]}
19... Rxb2 {[%clk 0:02:45.5]} 20. Bd1 {[%clk 0:02:25.7]} 20... Bxb5 {[%clk
0:02:43.3]} 21. axb5 {[%clk 0:02:22]} 21... Qxb5 {[%clk 0:02:44.3]} 22. Qc3
{[%clk 0:02:17.2]} 22... Rb1 {[%clk 0:02:40.5]} 0-1

[Event "*** Titled Tuesday 3|2 Blitz"]
[Site "Chess.com"]
[Date "2017.03.07"]
[Round "9"]
[White "silverback96"]
[Black "B-man"]
[Result "0-1"]
[WhiteElo "2070"]
[BlackElo "2475"]
[TimeControl "180+2"]
[EndTime "15:04:13 PST"]
[Termination "B-man won by checkmate"]

1. d4 {[%clk 0:03:02]} 1... d5 {[%clk 0:03:00.6]} 2. c4 {[%clk 0:03:03.3]} 2...
c6 {[%clk 0:03:00.7]} 3. Nf3 {[%clk 0:03:04.5]} 3... Nf6 {[%clk 0:03:01.8]} 4.
Nc3 {[%clk 0:03:06.3]} 4... e6 {[%clk 0:03:02.6]} 5. Qd3 {[%clk 0:03:07.7]} 5...
dxc4 {[%clk 0:02:59.7]} 6. Qxc4 {[%clk 0:03:09.6]} 6... b5 {[%clk 0:03:01.2]} 7.
Qd3 {[%clk 0:03:11.1]} 7... Ba6 {[%clk 0:02:56.5]} 8. Ne4 {[%clk 0:02:58.6]}
8... Nxe4 {[%clk 0:02:46.2]} 9. Qxe4 {[%clk 0:02:56.8]} 9... Bb4+ {[%clk
0:02:28.1]} 10. Bd2 {[%clk 0:02:57.4]} 10... Bxd2+ {[%clk 0:02:28.3]} 11. Nxd2
{[%clk 0:02:59.3]} 11... O-O {[%clk 0:02:29]} 12. e3 {[%clk 0:02:57.7]} 12...
Bb7 {[%clk 0:02:20.2]} 13. Bd3 {[%clk 0:02:58.6]} 13... g6 {[%clk 0:02:21.3]}
14. h4 {[%clk 0:02:52.9]} 14... Nd7 {[%clk 0:02:22.4]} 15. h5 {[%clk 0:02:53.3]}
15... Nf6 {[%clk 0:02:03.1]} 16. Qe5 {[%clk 0:02:53.3]} 16... Nxh5 {[%clk
0:01:51.8]} 17. Rxh5 {[%clk 0:02:55.2]} 17... gxh5 {[%clk 0:01:53.1]} 18. Qxh5
{[%clk 0:02:56.6]} 18... f5 {[%clk 0:01:54.1]} 19. O-O-O {[%clk 0:02:56.9]}
19... Qe7 {[%clk 0:01:49]} 20. Rh1 {[%clk 0:02:57]} 20... c5 {[%clk 0:01:49.4]}
21. Rh3 {[%clk 0:02:53.1]} 21... cxd4 {[%clk 0:01:46.8]} 22. Nf3 {[%clk
0:02:50.3]} 22... Rac8+ {[%clk 0:01:45.8]} 23. Kb1 {[%clk 0:02:49.5]} 23... dxe3
{[%clk 0:01:36.7]} 24. fxe3 {[%clk 0:02:51.4]} 24... Be4 {[%clk 0:01:36.8]} 25.
Bxe4 {[%clk 0:02:48.1]} 25... fxe4 {[%clk 0:01:38.7]} 26. Rg3+ {[%clk 0:02:50]}
26... Kh8 {[%clk 0:01:39.8]} 27. Qe5+ {[%clk 0:02:51.7]} 27... Qf6 {[%clk
0:01:41.1]} 28. Qxe4 {[%clk 0:02:47.4]} 28... Qf5 {[%clk 0:01:39.2]} 29. Qxf5
{[%clk 0:02:46.5]} 29... Rxf5 {[%clk 0:01:41.1]} 30. e4 {[%clk 0:02:47]} 30...
Rf4 {[%clk 0:01:41.3]} 31. Ng5 {[%clk 0:02:47.7]} 31... Rf1# {[%clk 0:01:41.5]}
0-1